bitfinex-derivatives/quotes_BTCF0:USTF0_20250814
["timestamp","ask_amount","ask_price","bid_price","bid_amount"]
[1755167442900,0.10375662,121630.0,121620.0,1.32988276]
[1755167443197,0.02158692,121630.0,121620.0,1.32988276]
[1755167443497,0.10375662,121630.0,121620.0,1.32988276]
[1755167443807,0.02158692,121630.0,121620.0,1.32988276]
[1755167444106,0.3444791,121640.0,121630.0,0.2001897]
[1755167444301,0.02158278,121640.0,121630.0,0.57328306]
[1755167444594,0.10374568,121640.0,121630.0,0.57328306]
[1755167444899,0.11955568,121640.0,121630.0,1.32780306]
[1755167445305,0.12055568,121640.0,121630.0,1.32780306]
[1755167445794,0.03839278,121640.0,121630.0,1.32780306]
[1755167445996,0.002,121640.0,121630.0,1.80501955]
[1755167446193,0.002,121640.0,121630.0,2.17024355]
[1755167446396,1.58782131,121650.0,121640.0,0.0821629]
[1755167446591,1.56625532,121650.0,121640.0,0.96678939]
[1755167446790,1.56625532,121650.0,121640.0,1.13120539]
[1755167446990,1.56625532,121650.0,121640.0,1.20261539]
[1755167447692,1.56825532,121650.0,121640.0,1.20261539]
[1755167447901,1.58368282,121650.0,121640.0,1.20261539]
[1755167449106,1.58568282,121650.0,121640.0,0.7253989]
[1755167449602,1.57025532,121650.0,121640.0,1.20261539]
[1755167449802,1.504,121650.0,121640.0,1.95705539]
[1755167449993,1.504,121650.0,121640.0,2.15705539]
[1755167450194,1.504,121650.0,121640.0,2.15701539]
[1755167452599,1.504,121650.0,121640.0,2.1692793]
[1755167454301,0.0650801,121660.0,121640.0,2.3336008]
[1755167454505,0.04678922,121670.0,121660.0,0.0821495]
[1755167454692,0.01498922,121670.0,121660.0,0.5615595]
[1755167454893,0.01581,121680.0,121660.0,1.95735059]
[1755167455101,0.135856,121680.0,121670.0,0.5615527]
[1755167455299,1.658996,121680.0,121670.0,1.3158327]
[1755167456003,1.67385584,121680.0,121670.0,1.3128327]
[1755167456698,1.67785584,121680.0,121670.0,1.3128327]
[1755167458004,1.74409483,121680.0,121670.0,1.3118327]
[1755167458390,1.76552256,121680.0,121670.0,1.3118327]
[1755167458594,2.24353905,121680.0,121670.0,0.4389427]
[1755167458795,2.24653905,121680.0,121670.0,0.3568]
[1755167458999,0.1598028,121670.0,121660.0,1.2792546]
[1755167459203,0.65844702,121670.0,121660.0,1.2792546]
[1755167459499,0.65764702,121670.0,121660.0,1.3365446]
[1755167459798,0.65764702,121670.0,121660.0,1.3494646]
[1755167459996,0.65764702,121670.0,121660.0,1.3978646]
[1755167460203,0.18143053,121670.0,121660.0,1.3978646]
[1755167460591,0.18143053,121670.0,121660.0,1.2792546]
[1755167460797,0.18143053,121670.0,121660.0,1.3031346]
[1755167461003,0.18343053,121670.0,121660.0,1.3515346]
[1755167461402,0.66064702,121670.0,121660.0,1.3515346]
[1755167464114,0.0851428,121670.0,121660.0,1.3637902]
[1755167464304,0.1388628,121670.0,121660.0,1.3637902]
[1755167464499,0.1620028,121670.0,121660.0,0.6559602]
[1755167464707,0.1620028,121670.0,121660.0,1.4100802]
[1755167466005,0.63921929,121670.0,121660.0,1.4100802]
[1755167466607,0.63921929,121670.0,121660.0,1.41004926]
[1755167469111,0.63921929,121670.0,121660.0,0.60752926]
[1755167469316,0.63921929,121670.0,121660.0,1.41000926]
[1755167469616,0.63921929,121670.0,121660.0,1.41000765]
[1755167470614,0.1620028,121670.0,121660.0,1.41000765]
[1755167471416,0.1388628,121670.0,121660.0,1.41000765]
[1755167471715,0.1620028,121670.0,121660.0,1.41000765]
[1755167473608,0.63921929,121670.0,121660.0,1.41000765]
[1755167475524,0.63921929,121670.0,121660.0,1.41001771]
[1755167478619,0.63921929,121670.0,121660.0,1.41002059]
[1755167480025,0.63921929,121670.0,121660.0,1.32787109]
[1755167481216,0.61607929,121670.0,121660.0,0.49164599]
[1755167481416,1.77618644,121670.0,121660.0,0.04578599]
[1755167481631,1.77618644,121670.0,121660.0,0.01223599]
[1755167481929,0.1590097,121660.0,121650.0,0.87257]
[1755167482116,0.65763334,121660.0,121650.0,0.88480987]
[1755167482922,0.15727685,121660.0,121650.0,0.96696627]
[1755167483123,0.1368697,121660.0,121650.0,0.88480987]
[1755167483425,0.15827672,121660.0,121650.0,0.88480987]
[1755167484624,0.15827672,121660.0,121650.0,0.96696627]
[1755167485424,0.0831497,121660.0,121650.0,0.96696627]
[1755167485630,0.0831497,121660.0,121650.0,1.32776627]
[1755167486429,0.10455966,121660.0,121650.0,1.32776627]
[1755167486630,0.10455966,121660.0,121650.0,0.57380627]
[1755167486837,0.10455966,121660.0,121650.0,1.32776627]
[1755167487425,0.10455966,121660.0,121650.0,1.32776845]
[1755167492634,0.10455966,121660.0,121650.0,1.3155264]
[1755167494336,0.10455966,121660.0,121650.0,1.2765364]
[1755167494529,0.10455966,121660.0,121650.0,1.3007364]
[1755167495123,0.10456671,121660.0,121650.0,1.3007364]
[1755167498332,0.10456671,121660.0,121650.0,0.9399364]
[1755167498538,0.10456671,121660.0,121650.0,0.9565064]
[1755167499037,0.10456671,121660.0,121650.0,1.3173064]
[1755167501431,0.10456671,121660.0,121650.0,0.9565064]
[1755167501633,0.10456671,121660.0,121650.0,1.3173064]
[1755167501931,0.10456671,121660.0,121650.0,0.9565064]
[1755167502133,0.5817832,121660.0,121650.0,0.9565064]
[1755167503741,0.5975932,121660.0,121650.0,0.9565064]
[1755167504345,0.6133732,121660.0,121650.0,0.9565064]
[1755167509646,0.02241701,121660.0,121650.0,1.04056289]
[1755167509850,0.02241701,121660.0,121650.0,1.79432289]
[1755167510153,0.001,121660.0,121650.0,1.79432289]
[1755167510347,0.0821428,121670.0,121650.0,1.96814759]
[1755167510553,0.40966333,121680.0,121670.0,0.2024829]
[1755167510750,0.43111692,121680.0,121670.0,0.2024829]
[1755167511051,0.43111692,121680.0,121670.0,0.9562029]
[1755167511251,0.43111692,121680.0,121670.0,0.2024829]
[1755167511458,0.43111692,121680.0,121670.0,0.9562029]
[1755167511660,0.43111692,121680.0,121670.0,0.9542029]
[1755167512062,0.43111692,121680.0,121670.0,0.9532029]
[1755167512265,0.43111692,121680.0,121670.0,0.1994829]
[1755167512563,0.43111692,121680.0,121670.0,0.9532029]
[1755167512861,0.43311692,121680.0,121670.0,0.9532029]
[1755167513263,0.43611692,121680.0,121670.0,0.9532029]
[1755167516861,0.50070692,121680.0,121670.0,0.9532029]
[1755167517262,0.97792341,121680.0,121670.0,0.9532029]
[1755167517453,1.00062341,121680.0,121670.0,0.9532029]
[1755167520562,0.97792341,121680.0,121670.0,0.9417229]
[1755167520767,0.1694329,121670.0,121660.0,1.4797587]
[1755167520966,0.66810298,121670.0,121660.0,1.4797587]
[1755167521265,0.66809756,121670.0,121660.0,1.4797587]
[1755167521567,0.16818107,121670.0,121660.0,1.4797587]
[1755167522060,0.14597107,121670.0,121660.0,1.4585987]
[1755167522262,0.14797107,121670.0,121660.0,1.4585987]
[1755167523367,0.14397107,121670.0,121660.0,1.4585987]
[1755167524064,0.10559107,121670.0,121660.0,1.4585987]
[1755167525666,0.10559107,121670.0,121660.0,1.47085511]
[1755167531267,0.10559107,121670.0,121660.0,1.4585987]
[1755167531471,0.10559107,121670.0,121660.0,1.47085575]
[1755167531870,0.10559107,121670.0,121660.0,1.4585987]
[1755167532572,0.10559107,121670.0,121660.0,1.47085593]
[1755167532769,0.10559107,121670.0,121660.0,1.4585987]
[1755167533866,0.10559107,121670.0,121660.0,1.47085628]
[1755167534073,0.10559107,121670.0,121660.0,1.4585987]
[1755167534467,0.10559107,121670.0,121660.0,1.47085674]
[1755167537568,0.10559107,121670.0,121660.0,1.47085978]
[1755167538880,0.10559137,121670.0,121660.0,1.49169978]
[1755167539177,0.02344817,121670.0,121660.0,1.49169978]
[1755167539673,0.24537593,121680.0,121670.0,0.0821432]
[1755167539877,0.24537593,121680.0,121670.0,0.57420428]
[1755167540070,0.24537593,121680.0,121670.0,1.32736428]
[1755167541277,0.24737593,121680.0,121670.0,1.32736428]
[1755167541473,0.16723513,121680.0,121670.0,1.32736428]
[1755167541772,0.08509883,121680.0,121670.0,0.57420428]
[1755167541976,0.08509883,121680.0,121670.0,1.32736428]
[1755167542767,0.08509883,121680.0,121670.0,1.3151032]
[1755167542963,0.08209883,121680.0,121670.0,1.3151032]
[1755167543170,0.08309883,121680.0,121670.0,1.3151032]
[1755167543574,0.3285092,121700.0,121690.0,0.1297996]
[1755167543780,0.3285092,121700.0,121690.0,0.9542096]
[1755167543971,0.3285092,121700.0,121690.0,0.2011296]
[1755167544172,0.3285092,121700.0,121690.0,0.9542096]
[1755167544370,0.34099741,121700.0,121690.0,0.9542096]
[1755167544674,0.25886791,121700.0,121690.0,0.9542096]
[1755167544874,0.32471498,121700.0,121690.0,0.9542096]
[1755167545075,0.35902498,121700.0,121690.0,0.9542096]
[1755167545270,0.42177498,121700.0,121690.0,0.9542096]
[1755167545575,0.44897498,121700.0,121690.0,0.9542096]
[1755167545876,0.92619147,121700.0,121690.0,0.9542096]
[1755167548280,0.44897498,121700.0,121690.0,0.9542096]
[1755167551268,0.92619147,121700.0,121690.0,0.9540096]
[1755167551976,0.92519147,121700.0,121690.0,0.9540096]
[1755167552480,0.92519147,121700.0,121690.0,0.2011296]
[1755167552692,0.92519147,121700.0,121690.0,0.9540096]
[1755167552882,0.92519147,121700.0,121690.0,0.2011296]
[1755167553179,0.92519147,121700.0,121690.0,0.9534596]
[1755167555080,0.44797498,121700.0,121690.0,0.9534596]
[1755167555275,0.44797498,121700.0,121690.0,0.9534196]
[1755167558481,0.92519147,121700.0,121690.0,0.9534196]
[1755167559682,0.92519147,121700.0,121690.0,0.9533796]
[1755167562583,0.92519147,121700.0,121690.0,0.2006196]
[1755167562885,0.36728498,121700.0,121690.0,0.2006196]
[1755167563080,0.36728498,121700.0,121690.0,0.9532996]
[1755167563582,0.36728498,121700.0,121690.0,0.2006196]
[1755167565484,0.40883498,121700.0,121690.0,0.9532996]
[1755167565780,0.44797498,121700.0,121690.0,0.9532996]
[1755167566177,0.44797498,121700.0,121690.0,0.1546496]
[1755167566382,0.94643151,121700.0,121690.0,0.01223526]
[1755167566580,0.94643151,121700.0,121690.0,0.04642526]
[1755167566779,0.94643151,121700.0,121690.0,0.10741526]
[1755167568686,0.94643151,121700.0,121690.0,0.13074526]
[1755167570080,0.94643151,121700.0,121690.0,0.05981526]
[1755167570385,0.94643151,121700.0,121690.0,0.01223526]
[1755167571586,0.94643151,121700.0,121690.0,0.09436506]
[1755167571786,0.94643151,121700.0,121690.0,0.11932506]
[1755167572786,0.94643151,121700.0,121690.0,0.03719526]
[1755167573488,0.46921502,121700.0,121690.0,0.03721938]
[1755167573678,0.94643151,121700.0,121690.0,0.06146938]
[1755167574181,0.94643151,121700.0,121690.0,0.01225938]
[1755167577284,1.22173502,121700.0,121690.0,0.21121918]
[1755167578694,1.22028502,121700.0,121690.0,0.21121918]
[1755167579391,0.46776502,121700.0,121690.0,0.21121918]
[1755167582591,0.46776502,121700.0,121690.0,0.1989598]
[1755167587493,0.46776502,121700.0,121690.0,0.1293298]
[1755167587700,0.46776502,121700.0,121690.0,0.1989598]
[1755167588698,0.45337502,121700.0,121690.0,0.9513598]
[1755167588900,0.46776502,121700.0,121690.0,0.9513598]
[1755167589700,0.46776502,121700.0,121690.0,0.96369924]
[1755167590496,0.44652498,121700.0,121690.0,0.96369924]
[1755167590696,0.4678198,121700.0,121690.0,0.96369924]
[1755167590997,0.4678198,121700.0,121690.0,0.96365924]
[1755167591501,0.46776677,121700.0,121690.0,0.96365924]
[1755167593699,0.43007677,121700.0,121690.0,0.96365924]
[1755167593906,0.10357707,121700.0,121690.0,1.80163573]
[1755167594597,0.10357707,121700.0,121690.0,1.8016334]
[1755167595307,0.08233528,121700.0,121690.0,1.32441691]
[1755167596208,0.08233528,121700.0,121690.0,1.32441482]
[1755167596596,0.16445838,121700.0,121690.0,1.32441482]
[1755167597003,0.16345838,121700.0,121690.0,1.32441482]
[1755167597417,0.16245838,121700.0,121690.0,1.80163131]
[1755167597714,0.08033528,121700.0,121690.0,1.80163131]
[1755167598401,0.06784707,121700.0,121690.0,1.80163131]
[1755167598598,0.06784707,121700.0,121690.0,1.04931131]
[1755167598809,0.06784707,121700.0,121690.0,1.80151131]
[1755167598810,0.002,121700.0,121690.0,1.80151131]
[1755167599003,0.002,121700.0,121690.0,0.7522]
[1755167599207,0.002,121700.0,121680.0,0.690135]
[1755167599208,7.12515649,121680.0,121670.0,0.4869534]
[1755167599409,7.12515649,121680.0,121670.0,2.07716989]
[1755167599410,6.87950079,121680.0,121670.0,2.07716989]
[1755167599716,4.15991101,121680.0,121670.0,2.33223482]
[1755167600005,3.20787711,121680.0,121670.0,2.32783482]
[1755167600303,1.8756745,121680.0,121670.0,2.32783482]
[1755167600507,1.7267677,121680.0,121670.0,2.32783482]
[1755167600703,1.5851827,121680.0,121670.0,2.33063482]
[1755167600908,1.5474265,121680.0,121670.0,2.33083482]
[1755167601108,1.5169293,121680.0,121670.0,2.33083482]
[1755167601302,1.4864662,121680.0,121670.0,1.58243482]
[1755167601496,1.4864662,121680.0,121670.0,2.33459482]
[1755167601907,1.4864662,121680.0,121670.0,2.34550338]
[1755167602107,1.4864662,121680.0,121670.0,2.09483845]
[1755167602505,1.4864662,121680.0,121670.0,2.09683845]
[1755167603507,1.4864662,121680.0,121670.0,2.09675845]
[1755167603904,1.4864662,121680.0,121670.0,2.18858845]
[1755167604108,1.3856962,121680.0,121670.0,2.18858845]
[1755167604811,1.4347562,121680.0,121670.0,2.18858845]
[1755167605710,1.3856962,121680.0,121670.0,2.18858845]
[1755167607410,1.3856962,121680.0,121670.0,2.18846845]
[1755167608912,1.3856962,121680.0,121670.0,2.18842845]
[1755167611119,1.4347562,121680.0,121670.0,2.18842845]
[1755167613016,1.4347562,121680.0,121670.0,2.18830845]
[1755167613214,1.4113348,121680.0,121670.0,2.18830845]
[1755167613615,1.3622748,121680.0,121670.0,2.18830845]
[1755167613819,1.3622748,121680.0,121670.0,2.29162739]
[1755167614318,1.3622748,121680.0,121670.0,2.18830845]
[1755167615315,1.4113348,121680.0,121670.0,2.18830845]
[1755167616123,1.4843848,121680.0,121670.0,1.39040845]
[1755167616426,1.4843848,121680.0,121670.0,2.14212845]
[1755167616614,1.4113348,121680.0,121670.0,0.91319196]
[1755167616817,1.4113348,121680.0,121670.0,1.63036196]
[1755167616818,1.4843848,121680.0,121670.0,1.63036196]
[1755167617222,1.4851848,121680.0,121670.0,1.63036196]
[1755167617409,1.4851848,121680.0,121670.0,0.9267709]
[1755167617615,1.4851848,121680.0,121670.0,1.6784509]
[1755167617816,1.4851848,121680.0,121670.0,1.57513196]
[1755167618522,1.4851848,121680.0,121670.0,1.6784509]
[1755167620027,1.4851848,121680.0,121670.0,2.15566739]
[1755167621924,1.4851848,121680.0,121670.0,2.05234845]
[1755167622518,1.4514748,121680.0,121670.0,2.05234845]
[1755167622712,1.4843848,121680.0,121670.0,2.05230845]
[1755167623319,1.4843848,121680.0,121670.0,1.30066845]
[1755167623527,1.4843848,121680.0,121670.0,2.15558739]
[1755167623726,1.69942157,121680.0,121670.0,2.15558739]
[1755167624427,1.69942157,121680.0,121670.0,2.05226845]
[1755167628427,1.62637157,121680.0,121670.0,2.05226845]
[1755167628835,1.69942157,121680.0,121670.0,2.05226845]
[1755167635239,1.69942157,121680.0,121670.0,2.05210845]
[1755167635835,1.69942157,121680.0,121670.0,2.15545024]
[1755167638046,1.69942157,121680.0,121670.0,1.40401024]
[1755167638340,1.69942157,121680.0,121670.0,2.05206845]
[1755167638642,1.69942157,121680.0,121670.0,2.15542459]
[1755167639336,1.69942157,121680.0,121670.0,2.05206845]
[1755167641939,1.69942157,121680.0,121670.0,1.30066845]
[1755167642138,1.69942157,121680.0,121670.0,1.40402459]
[1755167642339,1.69942157,121680.0,121670.0,2.15534459]
[1755167643739,1.69942157,121680.0,121670.0,2.05198845]
[1755167643942,2.3062648,121680.0,121670.0,0.55434501]
[1755167644143,2.3070648,121680.0,121670.0,0.94482501]
[1755167644340,2.52210157,121680.0,121670.0,0.8414234]
[1755167644841,2.52130157,121680.0,121670.0,0.0901434]
[1755167645041,2.52130157,121680.0,121670.0,1.31863989]
[1755167646141,2.52130157,121680.0,121670.0,1.4220415]
[1755167649150,2.52130157,121680.0,121670.0,1.31863989]
[1755167649443,2.52130157,121680.0,121670.0,1.31859989]
[1755167652145,2.52130157,121680.0,121670.0,0.8413834]
[1755167652346,2.52130157,121680.0,121670.0,0.0901434]
[1755167652547,2.52130157,121680.0,121670.0,0.8413434]
[1755167653844,2.52130157,121680.0,121670.0,0.0901434]
[1755167654346,2.52130157,121680.0,121670.0,0.8413034]
[1755167656347,2.06022157,121680.0,121670.0,0.0901434]
[1755167656544,2.96423857,121680.0,121670.0,2.34e-05]
[1755167656748,2.96423857,121680.0,121670.0,0.8332868]
[1755167656950,2.96423857,121680.0,121670.0,0.0821668]
[1755167657150,2.96423857,121680.0,121670.0,0.8332868]
[1755167658151,2.88210157,121680.0,121670.0,0.8332868]
[1755167658352,2.88210157,121680.0,121670.0,0.93668841]
[1755167663853,2.96423857,121680.0,121670.0,0.93668841]
[1755167664054,2.96423857,121680.0,121670.0,0.8332868]
[1755167665054,2.88210157,121680.0,121670.0,0.8332868]
[1755167668347,2.88210157,121680.0,121670.0,0.8331668]
[1755167668552,2.88210157,121680.0,121670.0,0.8711268]
[1755167668957,2.88210157,121680.0,121670.0,0.9294468]
[1755167669161,2.88210157,121680.0,121670.0,0.1784468]
[1755167669457,2.88210157,121680.0,121670.0,0.9294468]
[1755167669748,2.88210157,121680.0,121670.0,0.8661068]
[1755167669958,2.6670648,121680.0,121670.0,1.45448329]
[1755167670255,2.88210157,121680.0,121670.0,1.45448329]
[1755167674253,2.88210157,121680.0,121670.0,0.65566329]
[1755167674558,2.88210157,121680.0,121670.0,1.40658329]
[1755167674758,2.88210157,121680.0,121670.0,0.9293668]
[1755167676266,2.06022157,121680.0,121670.0,0.9293668]
[1755167676564,2.88210157,121680.0,121670.0,0.9293668]
[1755167679069,2.06022157,121680.0,121670.0,0.9293668]
[1755167679254,2.88210157,121680.0,121670.0,0.9293668]
[1755167680170,2.88210157,121680.0,121670.0,1.40658329]
[1755167680964,2.88210157,121680.0,121670.0,1.5098649]
[1755167681167,2.88210157,121680.0,121670.0,1.5576849]
[1755167683354,2.88210157,121680.0,121670.0,1.45428329]
[1755167683754,2.88210157,121680.0,121670.0,1.5576849]
[1755167684262,2.88210157,121680.0,121670.0,1.45428329]
[1755167685158,2.88210157,121680.0,121670.0,1.40646329]
[1755167685559,2.6670648,121680.0,121670.0,1.40646329]
[1755167685765,2.88210157,121680.0,121670.0,1.40646329]
[1755167686264,2.88210157,121680.0,121670.0,0.1784468]
[1755167686560,2.88210157,121680.0,121670.0,0.9291268]
[1755167687861,2.88210157,121680.0,121670.0,1.03252841]
[1755167689065,2.88210157,121680.0,121670.0,0.9291268]
[1755167690556,2.6670648,121680.0,121670.0,0.9291268]
[1755167690866,2.88210157,121680.0,121670.0,0.9291268]
[1755167693171,2.88210157,121680.0,121670.0,1.40634329]
[1755167693964,2.6670648,121680.0,121670.0,1.40634329]
[1755167694173,2.88210157,121680.0,121670.0,1.40634329]
[1755167696187,2.88210157,121680.0,121670.0,0.9291268]
[1755167696486,2.88210157,121680.0,121670.0,0.1784468]
[1755167696686,2.88210157,121680.0,121670.0,0.9289268]
[1755167700085,2.88210157,121680.0,121670.0,0.1784468]
[1755167700389,2.88210157,121680.0,121670.0,0.9288868]
[1755167700690,2.88210157,121680.0,121670.0,0.1784468]
[1755167700986,2.88210157,121680.0,121670.0,0.9288468]
[1755167702285,2.88210157,121680.0,121670.0,1.40606329]
[1755167702990,1.4113348,121680.0,121670.0,0.69951329]
[1755167703282,1.4079448,121680.0,121670.0,1.81067329]
[1755167703484,1.4793848,121680.0,121670.0,1.81067329]
[1755167703887,1.4793848,121680.0,121670.0,0.69951329]
[1755167704089,1.4793848,121680.0,121670.0,1.81067329]
[1755167704990,1.4793848,121680.0,121670.0,1.06031329]
[1755167705181,1.4793848,121680.0,121670.0,1.81063329]
[1755167709885,1.2541066,121680.0,121670.0,1.9139549]
[1755167710093,1.1937528,121680.0,121670.0,1.1637149]
[1755167710389,0.8517564,121680.0,121670.0,1.9147149]
[1755167710591,0.5228625,121680.0,121670.0,2.1147149]
[1755167710892,0.1937444,121680.0,121670.0,2.1147149]
[1755167711188,0.059736,121680.0,121670.0,2.1147149]
[1755167711393,0.06668,121690.0,121670.0,2.2793322]
[1755167711585,0.17081,121690.0,121680.0,1.80804469]
[1755167711785,0.045316,121690.0,121680.0,1.80804469]
[1755167712280,0.045316,121690.0,121680.0,1.05788469]
[1755167712480,0.045316,121690.0,121680.0,1.80804469]
[1755167712684,0.077616,121690.0,121680.0,1.80804469]
[1755167714195,0.045316,121690.0,121680.0,1.80804469]
[1755167714695,0.045316,121690.0,121680.0,1.80904469]
[1755167714994,0.045316,121690.0,121680.0,1.81004469]
[1755167715383,0.045316,121690.0,121680.0,1.80904469]
[1755167715586,0.045316,121690.0,121680.0,1.81104469]
[1755167716590,0.045316,121690.0,121680.0,1.81204469]
[1755167717894,0.19468,121700.0,121690.0,0.08181]
[1755167718100,0.19468,121700.0,121690.0,0.69707789]
[1755167718595,0.19468,121700.0,121690.0,0.2198614]
[1755167718792,0.19468,121700.0,121690.0,0.69707789]
[1755167719686,0.19468,121700.0,121690.0,0.69807789]
[1755167720092,0.19468,121700.0,121690.0,0.69907789]
[1755167720896,0.12324,121700.0,121690.0,1.05987789]
[1755167721102,0.13812,121710.0,121690.0,2.05618759]
[1755167721301,0.40971677,121710.0,121700.0,1.05787119]
[1755167722007,0.40971677,121710.0,121700.0,1.80775119]
[1755167722902,0.40971677,121710.0,121700.0,1.05787119]
[1755167723093,0.40971677,121710.0,121700.0,1.80771119]
[1755167723904,0.40971677,121710.0,121700.0,1.81124119]
[1755167725306,0.40971677,121710.0,121700.0,1.81120119]
[1755167726004,0.40971677,121710.0,121700.0,1.06140119]
[1755167726304,0.40971677,121710.0,121700.0,1.81116119]
[1755167726602,0.40971677,121710.0,121700.0,1.82147931]
[1755167727804,0.40971677,121710.0,121700.0,1.07736931]
[1755167728104,0.40971677,121710.0,121700.0,1.82712931]
[1755167730394,0.12944,121720.0,121700.0,1.90925461]
[1755167730594,0.12944,121720.0,121710.0,0.71435089]
[1755167730595,1.03328,121720.0,121710.0,0.71435089]
[1755167730791,1.24831677,121720.0,121710.0,0.71435089]
[1755167731701,1.06334677,121720.0,121710.0,0.71435089]
[1755167731894,1.03328,121720.0,121710.0,1.46403089]
[1755167732205,1.24931677,121720.0,121710.0,1.46403089]
[1755167732706,1.24931677,121720.0,121710.0,1.46399089]
[1755167737114,1.24931677,121720.0,121710.0,1.07515089]
[1755167737316,0.02767,121720.0,121710.0,1.82467089]
[1755167737512,0.004,121720.0,121710.0,1.81873089]
[1755167737815,0.004,121720.0,121710.0,2.95473089]
[1755167738313,0.05261,121720.0,121710.0,2.95473089]
[1755167738501,0.21264,121720.0,121710.0,2.95469089]
[1755167738709,1.03424,121720.0,121710.0,1.2746044]
[1755167739018,1.24927677,121720.0,121710.0,2.0240844]
[1755167739225,1.24927677,121720.0,121710.0,1.2482344]
[1755167739516,1.24927677,121720.0,121710.0,1.9977144]
[1755167739713,1.24927677,121720.0,121710.0,2.51545089]
[1755167741015,1.22560677,121720.0,121710.0,2.51545089]
[1755167742319,1.22560677,121720.0,121710.0,2.56748089]
[1755167742616,1.22560677,121720.0,121710.0,2.56744089]
[1755167744030,1.17144677,121720.0,121710.0,2.56744089]
[1755167744223,1.24927677,121720.0,121710.0,2.56744089]
[1755167744517,1.24927677,121720.0,121710.0,1.81804089]
[1755167744719,1.24827677,121720.0,121710.0,2.56744089]
[1755167744920,1.24827677,121720.0,121710.0,2.56944089]
[1755167745106,1.24827677,121720.0,121710.0,2.56940089]
[1755167745715,1.24827677,121720.0,121710.0,2.57140089]
[1755167749323,1.24827677,121720.0,121710.0,1.82204089]
[1755167749509,1.24827677,121720.0,121710.0,1.3448244]
[1755167749715,1.60907677,121720.0,121710.0,1.82204089]
[1755167749913,1.60907677,121720.0,121710.0,2.57136089]
[1755167751919,1.60907677,121720.0,121710.0,2.57132089]
[1755167752319,1.60907677,121720.0,121710.0,1.82204089]
[1755167752516,1.60907677,121720.0,121710.0,2.57132089]
[1755167753122,1.60907677,121720.0,121710.0,2.0941044]
[1755167753323,1.60907677,121720.0,121710.0,1.69934089]
[1755167753523,1.60907677,121720.0,121710.0,1.2626844]
[1755167753820,1.60907677,121720.0,121710.0,1.73990089]
[1755167754014,1.39404,121720.0,121710.0,2.48914089]
[1755167754214,1.60907677,121720.0,121710.0,2.48914089]
[1755167754417,1.60907677,121720.0,121710.0,1.73990089]
[1755167754610,1.60907677,121720.0,121710.0,1.35314089]
[1755167756317,1.60907677,121720.0,121710.0,0.56334089]
[1755167756516,1.60907677,121720.0,121710.0,0.0861244]
[1755167756725,1.61951441,121720.0,121710.0,0.0861244]
[1755167756923,1.61951441,121720.0,121710.0,0.8353644]
[1755167757220,1.61951441,121720.0,121710.0,1.31258089]
[1755167758513,1.61951441,121720.0,121710.0,1.35267089]
[1755167759027,1.61951441,121720.0,121710.0,0.8353644]
[1755167759619,1.70163281,121720.0,121710.0,0.8353644]
[1755167761620,1.70163281,121720.0,121710.0,0.0861244]
[1755167761820,1.70163281,121720.0,121710.0,0.8353644]
[1755167762616,1.70163281,121720.0,121710.0,0.0861244]
[1755167762824,1.70163281,121720.0,121710.0,0.8354044]
[1755167764026,1.70163281,121720.0,121710.0,0.8353644]
[1755167768524,1.70163281,121720.0,121710.0,0.8354044]
[1755167769322,1.70163281,121720.0,121710.0,0.0861244]
[1755167769517,2.1788493,121720.0,121710.0,0.004]
[1755167769722,0.50170867,121700.0,121690.0,0.5605307]
[1755167769931,1.22330867,121700.0,121690.0,1.3097707]
[1755167770231,1.22330867,121700.0,121690.0,0.6310707]
[1755167770529,1.22330867,121700.0,121690.0,1.3803107]
[1755167771032,1.22330867,121700.0,121690.0,1.3843107]
[1755167771334,1.22330867,121700.0,121690.0,1.3873107]
[1755167771534,1.22330867,121700.0,121690.0,1.3893807]
[1755167772432,1.22330867,121700.0,121690.0,0.6661407]
[1755167772634,1.22330867,121700.0,121690.0,1.4154207]
[1755167773835,1.22330867,121700.0,121690.0,1.3168107]
[1755167774041,1.22330867,121700.0,121690.0,1.3569007]
[1755167774228,1.14117677,121700.0,121690.0,1.3569007]
[1755167774430,1.14117677,121700.0,121690.0,1.3589707]
[1755167774734,1.14117677,121700.0,121690.0,1.4051207]
[1755167777836,1.22330867,121700.0,121690.0,1.4051207]
[1755167778036,1.14117677,121700.0,121690.0,1.4051207]
[1755167778438,1.14117677,121700.0,121690.0,1.88233719]
[1755167778639,1.14117677,121700.0,121690.0,1.56821719]
[1755167780831,1.14117677,121700.0,121690.0,1.0910007]
[1755167782334,1.22330867,121700.0,121690.0,1.0910007]
[1755167784137,1.14117677,121700.0,121690.0,1.0910007]
[1755167784437,1.22330867,121700.0,121690.0,1.0910007]
[1755167785850,1.22330867,121700.0,121690.0,0.2350941]
[1755167786138,1.22330867,121700.0,121690.0,0.9361141]
[1755167786344,1.22330867,121700.0,121690.0,0.8383741]
[1755167788140,1.22330867,121700.0,121690.0,0.8788941]
[1755167788445,1.22330867,121700.0,121690.0,0.9120741]
[1755167788946,1.22330867,121700.0,121690.0,0.0891387]
[1755167789244,1.22330867,121700.0,121690.0,0.8383787]
[1755167790542,1.22330867,121700.0,121690.0,0.0891387]
[1755167790742,1.86486916,121700.0,121690.0,0.8383787]
[1755167791240,1.38765267,121700.0,121690.0,0.8383787]
[1755167791441,1.38765267,121700.0,121690.0,0.0891387]
[1755167791641,1.38765267,121700.0,121690.0,0.8383787]
[1755167791938,1.38765267,121700.0,121690.0,0.8353787]
[1755167792142,1.38765267,121700.0,121690.0,0.8363787]
[1755167792342,1.38765267,121700.0,121690.0,0.0871387]
[1755167792544,1.38765267,121700.0,121690.0,0.8363787]
[1755167793041,1.38765267,121700.0,121690.0,0.8333787]
[1755167794749,1.22330867,121700.0,121690.0,0.8333787]
[1755167798351,1.22330867,121700.0,121690.0,0.8738987]
[1755167800852,1.22330867,121700.0,121690.0,0.9070787]
[1755167801249,1.22330867,121700.0,121690.0,0.002]
[1755167801549,1.22330867,121700.0,121690.0,0.8333785]
[1755167802345,1.22330867,121700.0,121690.0,0.75124]
[1755167803451,1.22330867,121700.0,121690.0,0.002]
[1755167803656,1.22330867,121700.0,121670.0,0.4067133]
[1755167803657,0.2882552,121680.0,121670.0,0.4067133]
[1755167803858,1.22489197,121680.0,121670.0,1.1559133]
[1755167804149,1.22489197,121680.0,121670.0,1.1559533]
[1755167804556,1.0098552,121680.0,121670.0,0.1830511]
[1755167804756,1.0098552,121680.0,121670.0,0.85014]
[1755167804955,1.22489197,121680.0,121670.0,0.932292]
[1755167805161,1.22489197,121680.0,121670.0,0.1009]
[1755167805351,0.288262,121670.0,121660.0,1.55630251]
[1755167805545,0.649062,121670.0,121660.0,2.30550251]
[1755167805749,0.86409877,121670.0,121660.0,1.55630251]
[1755167805950,0.86409877,121670.0,121660.0,2.30550251]
[1755167806658,0.87419868,121670.0,121660.0,2.30550251]
[1755167806858,0.87419868,121670.0,121660.0,2.30850251]
[1755167808856,0.94110024,121670.0,121660.0,2.31150251]
[1755167813963,0.72606347,121670.0,121660.0,2.31150251]
[1755167814270,0.94110024,121670.0,121660.0,2.31150251]
[1755167816171,0.94110024,121670.0,121660.0,2.31154251]
[1755167818864,0.94110024,121670.0,121660.0,0.48972251]